fUST/lending_fUST_20240815
["ID","MTS","AMOUNT","RATE_DAILY","PERIOD"]
[334998643,1723716691931,-500.0,0.00016438,2]
[334998644,1723716691941,-168.6,0.00016438,2]
[334998645,1723716691951,-500.0,0.00016438,2]
[334998646,1723716691961,-3994.14,0.00016438,2]
[334998647,1723716691971,-546.03,0.00016438,2]
[334998648,1723716691980,-653.84,0.00016438,2]
[334998649,1723716691991,-855.41,0.00016438,2]
[334998650,1723716692000,-1698.32,0.00016438,2]
[334998651,1723716692010,-500.0,0.00016438,2]
[334998652,1723716692020,-500.0,0.00016438,2]
[334998653,1723716692029,-865.22,0.00016438,2]
[334998654,1723716692039,-1671.37,0.00016438,2]
[334998655,1723716692048,-701.74,0.00016438,2]
[334998656,1723716692058,-1706.36,0.00016438,2]
[334998657,1723716692067,-556.69,0.00016438,2]
[334998658,1723716692077,-996.25,0.00016438,2]
[334998659,1723716692087,-500.0,0.00016438,2]
[334998660,1723716692097,-1331.16,0.00016438,2]
[334998661,1723716692107,-500.0,0.00016438,2]
[334998662,1723716692116,-521.14,0.00016438,2]
[334998663,1723716692126,-581.45,0.00016438,2]
[334998664,1723716692136,-1209.32,0.00016438,2]
[334998665,1723716692145,-1818.92,0.00016438,2]
[334998666,1723716692155,-500.0,0.00016438,2]
[334998667,1723716692166,-1100.1,0.00016438,2]
[334998668,1723716692177,-562.82,0.00016438,2]
[334998669,1723716692187,-2254.64,0.00016438,2]
[334998670,1723716692196,-1967.02,0.00016438,2]
[334998671,1723716692206,-988.01,0.00016438,2]
[334998672,1723716692216,-527.63,0.00016438,2]
[334998673,1723716692225,-927.26,0.00016438,2]
[334998674,1723716692235,-719.3,0.00016438,2]
[334998675,1723716692244,-572.43,0.00016438,2]
[334998676,1723716692254,-799.05,0.00016438,2]
[334998677,1723716692264,-581.88,0.00016438,2]
[334998678,1723716692273,-2164.18,0.00016438,2]
[334998679,1723716692283,-2006.92,0.00016438,2]
[334998680,1723716692294,-761.66,0.00016438,2]
[334998681,1723716692303,-2873.64,0.00016438,2]
[334998682,1723716692313,-500.0,0.00016438,2]
[334998683,1723716692322,-561.92,0.00016438,2]
[334998684,1723716692331,-7862.62,0.00016438,2]
[334998685,1723716692340,-500.0,0.00016438,2]
[334998686,1723716692350,-688.24,0.00016438,2]
[334998687,1723716692360,-500.0,0.00016438,2]
[334998688,1723716692370,-712.1,0.00016438,2]
[334998689,1723716692379,-2181.37,0.00016438,2]
[334998690,1723716692389,-527.87,0.00016438,2]
[334998691,1723716692400,-500.0,0.00016438,2]
[334998692,1723716692410,-500.0,0.00016438,2]
[334998693,1723716692422,-500.0,0.00016438,2]
[334998694,1723716692432,-1909.95,0.00016438,2]
[334998695,1723716692441,-747.02,0.00016438,2]
[334998696,1723716692451,-1074.32,0.00016438,2]
[334998697,1723716692461,-1120.97,0.00016438,2]
[334998698,1723716692470,-500.0,0.00016438,2]
[334998699,1723716692479,-844.17,0.00016438,2]
[334998700,1723716692488,-1067.37,0.00016438,2]
[334998701,1723716692497,-562.8,0.00016438,2]
[334998702,1723716692506,-658.27,0.00016438,2]
[334998703,1723716692516,-500.0,0.00016438,2]
[334998704,1723716692525,-1035.86,0.00016438,2]
[334998705,1723716692534,-1942.4,0.00016438,2]
[334998706,1723716692543,-580.84,0.00016438,2]
[334998707,1723716692553,-860.49,0.00016438,2]
[334998708,1723716692562,-948.67,0.00016438,2]
[334998709,1723716692576,-500.0,0.00016438,2]
[334998710,1723716692586,-4530.48,0.00016438,2]
[334998711,1723716692595,-500.0,0.00016438,2]
[334998712,1723716692604,-1310.27,0.00016438,2]
[334998713,1723716692616,-615.48,0.00016438,2]
[334998714,1723716692626,-1631.5,0.00016438,2]
[334998715,1723716692637,-504.55,0.00016438,2]
[334998716,1723716692650,-8000.61,0.00016438,2]
[334998717,1723716692661,-700.72,0.00016438,2]
[334998718,1723716692671,-500.0,0.00016438,2]
[334998719,1723716692681,-1156.31,0.00016438,2]
[334998720,1723716692691,-1318.64,0.00016438,2]
[334998721,1723716692701,-777.45,0.00016438,2]
[334998722,1723716692710,-2060.47,0.00016438,2]
[334998723,1723716692720,-1553.53,0.00016438,2]
[334998724,1723716692730,-2404.91,0.00016438,2]
[334998725,1723716692739,-853.54,0.00016438,2]
[334998726,1723716692749,-4995.59,0.00016438,2]
[334998727,1723716692759,-671.77,0.00016438,2]
[334998728,1723716692768,-1660.52,0.00016438,2]
[334998729,1723716692778,-500.0,0.00016438,2]
[334998730,1723716692789,-567.31,0.00016438,2]
[334998731,1723716692799,-1508.2,0.00016438,2]
[334998732,1723716692809,-919.55,0.00016438,2]
[334998733,1723716692818,-1025.91,0.00016438,2]
[334998734,1723716692827,-500.0,0.00016438,2]
[334998735,1723716692836,-500.0,0.00016438,2]
[334998736,1723716692846,-569.43,0.00016438,2]
[334998737,1723716692855,-1601.78,0.00016438,2]
[334998738,1723716692865,-529.83,0.00016438,2]
[334998739,1723716692874,-1505.39,0.00016438,2]
[334998740,1723716692884,-500.0,0.00016438,2]
[334998741,1723716693017,-1190.58,0.00016438,2]
[334998742,1723716693028,-706.04,0.00016438,2]
[334998743,1723716693037,-2092.37,0.00016438,2]
[334998744,1723716693047,-570.66,0.00016438,2]
[334998745,1723716693057,-500.0,0.00016438,2]
[334998746,1723716693067,-861.8,0.00016438,2]
[334998747,1723716693077,-1608.08,0.00016438,2]
[334998748,1723716693087,-500.0,0.00016438,2]
[334998749,1723716693096,-217.668022,0.00016438,2]
[334998750,1723716693106,-217.668022,0.00016438,2]
[334998751,1723716693116,-217.668022,0.00016438,2]
[334998752,1723716693126,-217.668022,0.00016438,2]
[334998753,1723716693136,-217.668022,0.00016438,2]
[334998754,1723716693146,-217.668022,0.00016438,2]
[334998755,1723716693156,-217.668022,0.00016438,2]
[334998756,1723716693166,-217.668022,0.00016438,2]
[334998757,1723716693176,-217.668022,0.00016438,2]
[334998758,1723716693186,-217.668022,0.00016438,2]
[334998759,1723716693196,-217.668022,0.00016438,2]
[334998760,1723716693206,-217.668022,0.00016438,2]
[334998761,1723716693216,-217.668022,0.00016438,2]
[334998762,1723716693226,-217.668022,0.00016438,2]
[334998763,1723716693236,-217.668022,0.00016438,2]
[334998764,1723716693246,-217.668022,0.00016438,2]
[334998765,1723716693255,-217.668022,0.00016438,2]
[334998766,1723716693266,-217.668022,0.00016438,2]
[334998767,1723716693275,-217.668022,0.00016438,2]
[334998768,1723716693285,-217.668022,0.00016438,2]
[334998769,1723716693294,-958.80265132,0.000165,2]
[334998770,1723716693304,-1413.0,0.00016698,2]
[334998771,1723716693314,-633.39,0.00016712,2]
[334998772,1723716693323,-500.0,0.00016712,2]
[334998773,1723716693333,-714.19,0.00016712,2]
[334998774,1723716693343,-978.47,0.00016712,2]
[334998775,1723716693354,-500.0,0.00016712,2]
[334998776,1723716693364,-500.0,0.00016712,2]
[334998777,1723716693373,-500.0,0.00016712,2]
[334998778,1723716693382,-727.05,0.00016712,2]
[334998779,1723716693392,-500.0,0.00016712,2]
[334998780,1723716693402,-500.0,0.00016712,2]
[334998781,1723716693413,-500.0,0.00016712,2]
[334998782,1723716693423,-697.47,0.00016712,2]
[334998783,1723716693433,-542.51069362,0.00016712,2]
[334998784,1723716693443,-766.4,0.00016712,2]
[334998785,1723716693453,-500.0,0.00016712,2]
[334998786,1723716693463,-500.0,0.00016712,2]
[334998787,1723716693473,-500.0,0.00016712,2]
[334998788,1723716693482,-500.0,0.00016712,2]
[334998789,1723716693492,-869.62,0.00016712,2]
[334998790,1723716693502,-500.0,0.00016712,2]
[334998791,1723716693513,-590.23,0.00016712,2]
[334998792,1723716693522,-500.0,0.00016712,2]
[334998793,1723716693532,-500.0,0.00016712,2]
[334998794,1723716693542,-500.0,0.00016712,2]
[334998795,1723716693552,-736.55,0.00016712,2]
[334998796,1723716693562,-500.0,0.00016712,2]
[334998797,1723716693573,-632.59,0.00016712,2]
[334998798,1723716693584,-739.83,0.00016712,2]
[334998799,1723716693594,-500.0,0.00016712,2]
[334998800,1723716693604,-618.54,0.00016712,2]
[334998801,1723716693615,-500.0,0.00016712,2]
[334998802,1723716693625,-251.81031166,0.00016712,2]
[334998803,1723716693634,-500.0,0.00016712,2]
[334998804,1723716693645,-500.0,0.00016712,2]
[334998805,1723716693654,-693.68,0.00016712,2]
[334998806,1723716693668,-586.18,0.00016712,2]
[334998807,1723716693679,-768.05,0.00016712,2]
[334998808,1723716693690,-500.0,0.00016712,2]
[334998809,1723716693700,-500.0,0.00016712,2]
[334998810,1723716693711,-658.85,0.00016712,2]
[334998811,1723716693720,-500.0,0.00016712,2]
[334998812,1723716693730,-724.88,0.00016712,2]
[334998813,1723716693740,-733.53,0.00016712,2]
[334998814,1723716693750,-341.66880612,0.00016712,2]
[334998815,1723716693759,-507.04,0.00016712,2]
[334998816,1723716693769,-500.0,0.00016712,2]
[334998817,1723716693778,-807.88,0.00016712,2]
[334998818,1723716693788,-200.0,0.00016712,2]
[334998819,1723716693797,-1080.27,0.00016712,2]
[334998820,1723716693807,-618.64,0.00016712,2]
[334998821,1723716693816,-500.0,0.00016712,2]
[334998822,1723716693826,-500.0,0.00016712,2]
[334998823,1723716693837,-500.0,0.00016712,2]
[334998824,1723716693847,-500.0,0.00016712,2]
[334998825,1723716693857,-549.53,0.00016712,2]
[334998826,1723716693867,-761.97,0.00016712,2]
[334998827,1723716693877,-500.0,0.00016712,2]
[334998828,1723716693886,-500.0,0.00016712,2]
[334998829,1723716693897,-786.68,0.00016712,2]
[334998830,1723716693907,-582.93,0.00016712,2]
[334998831,1723716693918,-500.0,0.00016712,2]
[334998832,1723716693928,-500.0,0.00016712,2]
[334998833,1723716693938,-1007.52,0.00016712,2]
[334998834,1723716693948,-1023.58,0.00016712,2]
[334998835,1723716693957,-500.0,0.00016712,2]
[334998836,1723716693966,-500.0,0.00016712,2]
[334998837,1723716693976,-636.2,0.00016712,2]
[334998838,1723716693987,-500.0,0.00016712,2]
[334998839,1723716693996,-523.91,0.00016712,2]
[334998840,1723716694006,-525.78,0.00016712,2]
[334998841,1723716694016,-500.0,0.00016712,2]
[334998842,1723716694026,-500.0,0.00016712,2]
[334998843,1723716694035,-540.2,0.00016712,2]
[334998844,1723716694045,-500.0,0.00016712,2]
[334998845,1723716694054,-722.89,0.00016712,2]
[334998846,1723716694064,-701.26,0.00016712,2]
[334998847,1723716694074,-500.0,0.00016712,2]
[334998848,1723716694084,-523.63,0.00016712,2]
[334998849,1723716694093,-500.0,0.00016712,2]
[334998850,1723716694103,-719.99,0.00016712,2]
[334998851,1723716694113,-705.57,0.00016712,2]
[334998852,1723716694123,-500.0,0.00016712,2]
[334998853,1723716694133,-760.14,0.00016712,2]
[334998854,1723716694144,-500.0,0.00016712,2]
[334998855,1723716694153,-500.0,0.00016712,2]
[334998856,1723716694164,-500.0,0.00016712,2]
[334998857,1723716694175,-500.0,0.00016712,2]
[334998858,1723716694184,-500.0,0.00016712,2]
[334998859,1723716694194,-703.21,0.00016712,2]
[334998860,1723716694204,-739.05,0.00016712,2]
[334998861,1723716694214,-809.79,0.00016712,2]
[334998862,1723716694224,-500.0,0.00016712,2]
[334998863,1723716694234,-753.0,0.00016712,2]
[334998864,1723716694244,-768.32,0.00016712,2]
[334998865,1723716694254,-735.32,0.00016712,2]
[334998866,1723716694264,-500.0,0.00016712,2]
[334998867,1723716694274,-588.82,0.00016712,2]
[334998868,1723716694284,-500.0,0.00016712,2]
[334998869,1723716694295,-601.68,0.00016712,2]
[334998870,1723716694305,-500.0,0.00016712,2]
[334998871,1723716694316,-959.18,0.00016712,2]
[334998872,1723716694327,-500.0,0.00016712,2]
[334998873,1723716694337,-577.71,0.00016712,2]
[334998874,1723716694347,-500.0,0.00016712,2]
[334998875,1723716694357,-739.29,0.00016712,2]
[334998876,1723716694367,-863.69,0.00016712,2]
[334998877,1723716694376,-683.56,0.00016712,2]
[334998878,1723716694386,-1482.01,0.00016712,2]
[334998879,1723716694396,-500.0,0.00016712,2]
[334998880,1723716694406,-637.65,0.00016712,2]
[334998881,1723716694418,-752.65,0.00016712,2]
[334998882,1723716694427,-500.0,0.00016712,2]
[334998883,1723716694437,-500.0,0.00016712,2]
[334998884,1723716694448,-916.36,0.00016712,2]
[334998885,1723716694458,-905.05,0.00016712,2]
[334998886,1723716694468,-1137.78,0.00016712,2]
[334998887,1723716694478,-500.0,0.00016712,2]
[334998888,1723716694488,-581.08,0.00016712,2]
[334998889,1723716694498,-618.51,0.00016712,2]
[334998890,1723716694508,-500.0,0.00016712,2]
[334998891,1723716694518,-696.9,0.00016712,2]
[334998892,1723716694528,-615.83,0.00016712,2]
[334998893,1723716694538,-500.0,0.00016712,2]
[334998894,1723716694548,-1246.53,0.00016712,2]
[334998895,1723716694558,-1277.91,0.00016712,2]
[334998896,1723716694570,-500.0,0.00016712,2]
[334998897,1723716694584,-500.0,0.00016712,2]
[334998898,1723716694594,-822.29,0.00016712,2]
[334998899,1723716694603,-500.0,0.00016712,2]
[334998900,1723716694613,-801.88,0.00016712,2]
[334998901,1723716694623,-500.0,0.00016712,2]
[334998902,1723716694633,-536.68,0.00016712,2]
[334998903,1723716694642,-168.6,0.00016712,2]
[334998904,1723716694652,-500.0,0.00016712,2]
[334998905,1723716694664,-500.0,0.00016712,2]
[334998906,1723716694675,-3994.14,0.00016712,2]
[334998907,1723716694684,-546.03,0.00016712,2]
[334998908,1723716694694,-653.84,0.00016712,2]
[334998909,1723716694704,-855.41,0.00016712,2]
[334998910,1723716694713,-1698.32,0.00016712,2]
[334998911,1723716694723,-500.0,0.00016712,2]
[334998912,1723716694732,-500.0,0.00016712,2]
[334998913,1723716694742,-865.22,0.00016712,2]
[334998914,1723716694751,-1671.37,0.00016712,2]
[334998915,1723716694760,-701.74,0.00016712,2]
[334998916,1723716694770,-1706.36,0.00016712,2]
[334998917,1723716694779,-556.69,0.00016712,2]
[334998918,1723716694788,-996.25,0.00016712,2]
[334998919,1723716694798,-500.0,0.00016712,2]
[334998920,1723716694808,-1331.16,0.00016712,2]
[334998921,1723716694817,-500.0,0.00016712,2]
[334998922,1723716694828,-521.14,0.00016712,2]
[334998923,1723716694838,-581.45,0.00016712,2]
[334998924,1723716694847,-1209.32,0.00016712,2]
[334998925,1723716694857,-1818.92,0.00016712,2]
[334998926,1723716694866,-500.0,0.00016712,2]
[334998927,1723716694875,-1100.1,0.00016712,2]
[334998928,1723716694885,-562.82,0.00016712,2]
[334998929,1723716694894,-2254.64,0.00016712,2]
[334998930,1723716694904,-1967.02,0.00016712,2]
[334998931,1723716694915,-988.01,0.00016712,2]
[334998932,1723716694925,-527.63,0.00016712,2]
[334998933,1723716694934,-927.26,0.00016712,2]
[334998934,1723716694943,-719.3,0.00016712,2]
[334998935,1723716694953,-572.43,0.00016712,2]
[334998936,1723716694963,-799.05,0.00016712,2]
[334998937,1723716694972,-581.88,0.00016712,2]
[334998938,1723716694982,-2164.18,0.00016712,2]
[334998939,1723716694992,-2006.92,0.00016712,2]
[334998940,1723716695001,-761.66,0.00016712,2]
[334998941,1723716695011,-2873.64,0.00016712,2]
[334998942,1723716695022,-500.0,0.00016712,2]
[334998943,1723716695031,-561.92,0.00016712,2]
[334998944,1723716695041,-7862.62,0.00016712,2]
[334998945,1723716695050,-500.0,0.00016712,2]
[334998946,1723716695060,-688.24,0.00016712,2]
[334998947,1723716695069,-500.0,0.00016712,2]
[334998948,1723716695079,-712.1,0.00016712,2]
[334998949,1723716695089,-2181.37,0.00016712,2]
[334998950,1723716695099,-527.87,0.00016712,2]
[334998951,1723716695109,-500.0,0.00016712,2]
[334998952,1723716695120,-500.0,0.00016712,2]
[334998953,1723716695133,-500.0,0.00016712,2]
[334998954,1723716695144,-1909.95,0.00016712,2]
[334998955,1723716695154,-747.02,0.00016712,2]
[334998956,1723716695165,-1074.32,0.00016712,2]
[334998957,1723716695175,-1120.97,0.00016712,2]
[334998958,1723716695184,-500.0,0.00016712,2]
[334998959,1723716695194,-844.17,0.00016712,2]
[334998960,1723716695204,-1067.37,0.00016712,2]
[334998961,1723716695214,-562.8,0.00016712,2]
[334998962,1723716695223,-658.27,0.00016712,2]
[334998963,1723716695234,-500.0,0.00016712,2]
[334998964,1723716695244,-1035.86,0.00016712,2]
[334998965,1723716695254,-1942.4,0.00016712,2]
[334998966,1723716695264,-580.84,0.00016712,2]
[334998967,1723716695273,-860.49,0.00016712,2]
[334998968,1723716695283,-948.67,0.00016712,2]
[334998969,1723716695293,-500.0,0.00016712,2]
[334998970,1723716695302,-500.0,0.00016712,2]
[334998971,1723716695312,-4530.48,0.00016712,2]
[334998972,1723716695321,-1310.27,0.00016712,2]
[334998973,1723716695332,-615.48,0.00016712,2]
[334998974,1723716695341,-1631.5,0.00016712,2]
[334998975,1723716695350,-504.55,0.00016712,2]
[334998976,1723716695360,-8000.61,0.00016712,2]
[334998977,1723716695369,-700.72,0.00016712,2]
[334998978,1723716695379,-500.0,0.00016712,2]
[334998979,1723716695388,-1156.31,0.00016712,2]
[334998980,1723716695400,-1318.64,0.00016712,2]
[334998981,1723716695409,-777.45,0.00016712,2]
[334998982,1723716695420,-2060.47,0.00016712,2]
[334998983,1723716695430,-1553.53,0.00016712,2]
[334998984,1723716695439,-2404.91,0.00016712,2]
[334998985,1723716695449,-853.54,0.00016712,2]
[334998986,1723716695458,-4995.59,0.00016712,2]
[334998987,1723716695467,-671.77,0.00016712,2]
[334998988,1723716695477,-1660.52,0.00016712,2]
[334998989,1723716695486,-500.0,0.00016712,2]
[334998990,1723716695495,-567.31,0.00016712,2]
[334998991,1723716695504,-1508.2,0.00016712,2]
[334998992,1723716695515,-919.55,0.00016712,2]
[334998993,1723716695633,-1025.91,0.00016712,2]
[334998994,1723716695654,-500.0,0.00016712,2]
[334998995,1723716695664,-523.36140072,0.00016712,2]
[334998996,1723716695675,-569.43,0.00016712,2]
[334998997,1723716695684,-1601.78,0.00016712,2]
[334998998,1723716695695,-529.83,0.00016712,2]
[334998999,1723716695704,-1505.39,0.00016712,2]
[334999000,1723716695714,-500.0,0.00016712,2]
[334999001,1723716695725,-1190.58,0.00016712,2]
[334999002,1723716695735,-706.04,0.00016712,2]
[334999003,1723716695744,-2092.37,0.00016712,2]
[334999004,1723716695754,-570.66,0.00016712,2]
[334999005,1723716695764,-500.0,0.00016712,2]
[334999006,1723716695773,-861.8,0.00016712,2]
[334999007,1723716695784,-1608.08,0.00016712,2]
[334999008,1723716695795,-204.23740058,0.00016712,2]
[334999009,1723716695804,-408.54880374,0.0001674,2]
[334999010,1723716695815,-160.0,0.00016856,3]
[334999011,1723716695825,-500.0,0.00016916,2]
[334999012,1723716695835,-160.0,0.0001693,4]
[334999013,1723716695845,-633.39,0.00016986,2]
[334999014,1723716695857,-500.0,0.00016986,2]
[334999015,1723716695866,-714.19,0.00016986,2]
[334999016,1723716695876,-978.47,0.00016986,2]
[334999017,1723716695886,-500.0,0.00016986,2]
[334999018,1723716695896,-500.0,0.00016986,2]
[334999019,1723716695905,-500.0,0.00016986,2]
[334999020,1723716695917,-727.05,0.00016986,2]
[334999021,1723716695927,-500.0,0.00016986,2]
[334999022,1723716695938,-500.0,0.00016986,2]
[334999023,1723716695948,-500.0,0.00016986,2]
[334999024,1723716695958,-697.47,0.00016986,2]
[334999025,1723716695967,-766.4,0.00016986,2]
[334999026,1723716695977,-182.03530496,0.00016986,2]
[334999027,1723716695986,-500.0,0.00016986,2]
[334999028,1723716695996,-500.0,0.00016986,2]
[334999029,1723716696006,-500.0,0.00016986,2]
[334999030,1723716696017,-869.62,0.00016986,2]
[334999031,1723716696028,-500.0,0.00016986,2]
[334999032,1723716696038,-590.23,0.00016986,2]
[334999033,1723716696050,-500.0,0.00016986,2]
[334999034,1723716696060,-500.0,0.00016986,2]
[334999035,1723716696069,-500.0,0.00016986,2]
[334999036,1723716696079,-736.55,0.00016986,2]
[334999037,1723716696088,-500.0,0.00016986,2]
[334999038,1723716696098,-632.59,0.00016986,2]
[334999039,1723716696108,-739.83,0.00016986,2]
[334999040,1723716696117,-500.0,0.00016986,2]
[334999041,1723716696126,-618.54,0.00016986,2]
[334999042,1723716696136,-500.0,0.00016986,2]
[334999043,1723716696146,-500.0,0.00016986,2]
[334999044,1723716696156,-693.68,0.00016986,2]
[334999045,1723716696167,-586.18,0.00016986,2]
[334999046,1723716696183,-768.05,0.00016986,2]
[334999047,1723716696192,-250.93366868,0.00016986,2]
[334999048,1723716696202,-500.0,0.00016986,2]
[334999049,1723716696211,-658.85,0.00016986,2]
[334999050,1723716696221,-500.0,0.00016986,2]
[334999051,1723716696231,-724.88,0.00016986,2]
[334999052,1723716696240,-733.53,0.00016986,2]
[334999053,1723716696250,-507.04,0.00016986,2]
[334999054,1723716696259,-500.0,0.00016986,2]
[334999055,1723716696268,-807.88,0.00016986,2]
[334999056,1723716696277,-200.0,0.00016986,2]
[334999057,1723716696286,-1080.27,0.00016986,2]
[334999058,1723716696296,-618.64,0.00016986,2]
[334999059,1723716696305,-500.0,0.00016986,2]
[334999060,1723716696315,-500.0,0.00016986,2]
[334999061,1723716696325,-556.15953508,0.00016986,2]
[334999062,1723716696334,-500.0,0.00016986,2]
[334999063,1723716696343,-549.53,0.00016986,2]
[334999064,1723716696353,-761.97,0.00016986,2]
[334999065,1723716696362,-500.0,0.00016986,2]
[334999066,1723716696372,-500.0,0.00016986,2]
[334999067,1723716696382,-786.68,0.00016986,2]
[334999068,1723716696392,-582.93,0.00016986,2]
[334999069,1723716696403,-500.0,0.00016986,2]
[334999070,1723716696414,-500.0,0.00016986,2]
[334999071,1723716696424,-1007.52,0.00016986,2]
[334999072,1723716696434,-1023.58,0.00016986,2]
[334999073,1723716696444,-500.0,0.00016986,2]
[334999074,1723716696454,-500.0,0.00016986,2]
[334999075,1723716696464,-636.2,0.00016986,2]
[334999076,1723716696474,-500.0,0.00016986,2]
[334999077,1723716696483,-523.91,0.00016986,2]
[334999078,1723716696493,-525.78,0.00016986,2]
[334999079,1723716696503,-500.0,0.00016986,2]
[334999080,1723716696513,-500.0,0.00016986,2]
[334999081,1723716696522,-540.2,0.00016986,2]
[334999082,1723716696532,-500.0,0.00016986,2]
[334999083,1723716696541,-722.89,0.00016986,2]
[334999084,1723716696551,-701.26,0.00016986,2]
[334999085,1723716696561,-500.0,0.00016986,2]
[334999086,1723716696572,-523.63,0.00016986,2]
[334999087,1723716696585,-500.0,0.00016986,2]
[334999088,1723716696595,-705.57,0.00016986,2]
[334999089,1723716696605,-719.99,0.00016986,2]
[334999090,1723716696615,-500.0,0.00016986,2]
[334999091,1723716696624,-760.14,0.00016986,2]
[334999092,1723716696634,-500.0,0.00016986,2]
[334999093,1723716696643,-500.0,0.00016986,2]
[334999094,1723716696654,-500.0,0.00016986,2]
[334999095,1723716696664,-500.0,0.00016986,2]
[334999096,1723716696674,-500.0,0.00016986,2]
[334999097,1723716696684,-703.21,0.00016986,2]
[334999098,1723716696693,-739.05,0.00016986,2]
[334999099,1723716696703,-809.79,0.00016986,2]
[334999100,1723716696713,-500.0,0.00016986,2]
[334999101,1723716696723,-753.0,0.00016986,2]
[334999102,1723716696733,-768.32,0.00016986,2]
[334999103,1723716696742,-735.32,0.00016986,2]
[334999104,1723716696751,-500.0,0.00016986,2]
[334999105,1723716696761,-588.82,0.00016986,2]
[334999106,1723716696770,-500.0,0.00016986,2]
[334999107,1723716696780,-601.68,0.00016986,2]
[334999108,1723716696791,-500.0,0.00016986,2]
[334999109,1723716696801,-959.18,0.00016986,2]
[334999110,1723716696812,-500.0,0.00016986,2]
[334999111,1723716696823,-577.71,0.00016986,2]
[334999112,1723716696834,-500.0,0.00016986,2]
[334999113,1723716696844,-739.29,0.00016986,2]
[334999114,1723716696853,-863.69,0.00016986,2]
[334999115,1723716696863,-683.56,0.00016986,2]
[334999116,1723716696873,-1482.01,0.00016986,2]
[334999117,1723716696882,-500.0,0.00016986,2]
[334999118,1723716696892,-637.65,0.00016986,2]
[334999119,1723716696902,-752.65,0.00016986,2]
[334999120,1723716696912,-500.0,0.00016986,2]
[334999121,1723716696922,-500.0,0.00016986,2]
[334999122,1723716696932,-916.36,0.00016986,2]
[334999123,1723716696942,-905.05,0.00016986,2]
[334999124,1723716696952,-1137.78,0.00016986,2]
[334999125,1723716696962,-500.0,0.00016986,2]
[334999126,1723716696971,-581.08,0.00016986,2]
[334999127,1723716696981,-618.51,0.00016986,2]
[334999128,1723716696991,-386.41479636,0.00016986,2]
[334999129,1723716697001,-696.9,0.00016986,2]
[334999130,1723716697010,-615.83,0.00016986,2]
[334999131,1723716697020,-477.32057642,0.00016986,2]
[334999132,1723716697030,-1246.53,0.00016986,2]
[334999133,1723716697040,-1277.91,0.00016986,2]
[334999134,1723716697050,-500.0,0.00016986,2]
[334999135,1723716697060,-500.0,0.00016986,2]
[334999136,1723716697069,-822.29,0.00016986,2]
[334999137,1723716697079,-500.0,0.00016986,2]
[334999138,1723716697089,-801.88,0.00016986,2]
[334999139,1723716697100,-500.0,0.00016986,2]
[334999140,1723716697110,-536.68,0.00016986,2]
[334999141,1723716697120,-168.6,0.00016986,2]
[334999142,1723716697130,-500.0,0.00016986,2]